[Event "World Junior U20 Girls 2018"]
[Site "Gebze"]
[Date "2018.09.14"]
[Round "10"]
[White "Rousseau, Christilla"]
[Black "Aydin, Gulenay"]
[Result "0-1"]
[ECO "A48"]
[WhiteElo "1677"]
[BlackElo "1882"]
[Annotator "NA"]
[PlyCount "92"]
[EventDate "2018.09.05"]
[EventType "swiss"]
[EventCountry "TUR"]
[SourceTitle "playchess.com"]
[Source "ChessBase"]
[SourceQuality "1"]
[TimeControl "40/5400+30:1800+30"]

1. d4 {[%emt 0:00:30]} Nf6 {[%emt 0:00:30]} 2. Bf4 {[%emt 0:00:30]} g6 {[%emt 0:00:30]} 3. e3 {[%emt 0:00:30]} Bg7 {[%emt 0:00:00]} 4. Nf3 {[%emt 0:00:00]} O-O {[%emt 0:00:00] LiveBook: 1864 Games} 5. h3 {[%emt 0:00:00]} d6 {[%emt 0:00:00]} 6. Be2 {[%emt 0:00:30]} c5 {[%emt 0:01:00]} 7. c3 {[%emt 0:00:00]} Qb6 {[%emt 0:00:30]} 8. Qb3 {[%emt 0:03:00]} Be6 {[%emt 0:01:30] A48: 1 d4 Nf6 2 Nf3 g6: Torre, London and Colle Systems} 9. Qc2 {[%emt 0:01:30]} (9. Qxb6 axb6 10. a3 Bd5 11. O-O Bc6 12. Nbd2 Nbd7 13. Rfe1 Rfd8 14. Bh2 b5 15. Bf1 e5 16. e4 exd4 17. cxd4 d5 18. e5 {0-1 (54) Morozevich,A (2722)-Grischuk,A (2777) Loo 2014}) 9... Nc6 {[%emt 0:08:30]} 10. Nbd2 {[%emt 0:03:30]} d5 $146 {[%emt 0:06:30]} ({Predecessor:} 10... cxd4 11. Nxd4 Nxd4 12. exd4 Rac8 13. Nf3 Nd5 14. Be3 Nxe3 15. fxe3 {0-1 (41) Trabazos Gallego,J (1922)-Moya Mallafre,E (1989) Benidorm 2011}) 11. dxc5 {[%emt 0:06:30]} Qxc5 {[%emt 0:00:00]} 12. O-O {[%emt 0:08:30]} b5 {[%emt 0:09:00]} 13. Nb3 {[%emt 0:06:30]} Qb6 {[%emt 0:00:00]} 14. Nbd4 {[%emt 0:03:30]} Nxd4 {[%emt 0:02:00]} 15. exd4 {[%emt 0:01:30]} Ne4 {[%emt 0:06:30]} 16. Qb3 {[%emt 0:04:30]} Nd6 {[%emt 0:06:30]} 17. Ne5 {[%emt 0:08:30]} h6 {[%emt 0:09:30]} 18. Nd3 {[%emt 0:07:30]} a6 {[%emt 0:01:30]} 19. Nc5 {[%emt 0:02:30]} Nc4 {[%emt 0:04:30]} 20. Rad1 {[%emt 0:04:30]} Qc6 {[%emt 0:05:30]} 21. Rfe1 {[%emt 0:04:30]} Bc8 {[%emt 0:07:30]} 22. Nd3 {[%emt 0:09:30]} Bb7 {[%emt 0:06:30]} 23. Bf3 {[%emt 0:01:30]} Rfe8 {[%emt 0:00:30]} 24. Bh2 {[%emt 0:06:17]} Rad8 {[%emt 0:02:30]} 25. Ne5 {[%emt 0:00:46]} Nxe5 {[%emt 0:00:30]} 26. dxe5 {[%emt 0:02:55]} e6 {[%emt 0:01:30]} 27. Bf4 $14 {[%emt 0:03:42]} Re7 {[%emt 0:00:30]} 28. Qb4 {[%emt 0:01:26]} Rc7 {[%emt 0:00:30]} 29. Qd4 {[%emt 0:02:04]} Rdc8 {[%emt 0:01:16]} 30. h4 {[%emt 0:00:52]} a5 {[%emt 0:01:49]} 31. Qd2 {[%emt 0:01:15]} Kh7 {[%emt 0:00:59]} 32. g4 {[%emt 0:00:40]} Ba6 {[%emt 0:01:03]} 33. a3 {[%emt 0:01:48]} Rb7 {[%emt 0:01:46]} 34. Qc2 {[%emt 0:02:07]} b4 {[%emt 0:01:09]} 35. Bd2 {[%emt 0:00:58]} Bb5 {[%emt 0:01:07]} 36. h5 {[%emt 0:01:35]} Ba4 {[%emt 0:01:59]} 37. hxg6+ {[%emt 0:00:30]} fxg6 {[%emt 0:00:00]} 38. b3 {[%emt 0:00:00]} bxc3 {[%emt 0:03:51]} 39. bxa4 {[%emt 0:01:25]} cxd2 {[%emt 0:00:13]} 40. Qxd2 {[%emt 0:00:00]} Qxa4 {[%emt 0:00:00]} 41. Kg2 {[%emt 0:02:40]} Rc2 {[%emt 0:12:18]} 42. Qd3 {[%emt 0:03:30]} Rbb2 {[%emt 0:00:30]} 43. Re2 {[%emt 0:01:30]} Rxe2 {[%emt 0:02:30]} 44. Bxe2 {[%emt 0:00:30]} Qf4 {[%emt 0:00:30]} 45. Bf3 {[%emt 0:06:52]} Bxe5 {[%emt 0:01:30]} 46. Kh1 {[%emt 0:02:02]} Qh2# {[%emt 0:00:30]} 0-1

[Event "World Junior U20 Girls 2018"]
[Site "Gebze"]
[Date "2018.09.14"]
[Round "10"]
[White "Esti, Kubra Selenay"]
[Black "Bail, Ellen Larissa"]
[Result "0-1"]
[ECO "E61"]
[WhiteElo "1662"]
[BlackElo "1832"]
[Annotator "NA"]
[PlyCount "80"]
[EventDate "2018.09.05"]
[EventType "swiss"]
[EventCountry "TUR"]
[SourceTitle "playchess.com"]
[Source "ChessBase"]
[SourceQuality "1"]
[TimeControl "40/5400+30:1800+30"]

1. d4 {[%emt 0:00:30]} Nf6 {[%emt 0:00:30]} 2. Bf4 {[%emt 0:00:30]} g6 {[%emt 0:00:30]} 3. e3 {[%emt 0:00:00]} Bg7 {[%emt 0:00:00]} 4. Nf3 {[%emt 0:00:00]} O-O {[%emt 0:00:00]} 5. Be2 {[%emt 0:00:30]} d6 {[%emt 0:00:30]} 6. h3 {[%emt 0:00:30]} Nfd7 {[%emt 0:00:00]} 7. c4 {[%emt 0:02:30]} e5 {[%emt 0:01:00]} 8. Bh2 {[%emt 0:00:30]} Nc6 {[%emt 0:00:30]} 9. Nc3 {[%emt 0:01:30]} f5 {[%emt 0:05:30]} 10. O-O {[%emt 0:12:30] E61: King's Indian: Early deviations for White, including Smyslov System} e4 {[%emt 0:02:30]} (10... Kh8 11. a3 e4 12. Nd2 Ne7 13. b4 Nf6 14. Rc1 Be6 15. f3 exf3 16. Bxf3 c6 17. b5 Bg8 18. a4 Rc8 {1-0 (31) Matlakov,M (2689)-Huzman,A (2580) Berlin 2015}) 11. Nd2 {[%emt 0:03:30]} Nf6 {[%emt 0:05:30]} 12. Qa4 {[%emt 0:05:30]} Re8 $146 {[%emt 0:10:30]} ({Predecessor:} 12... Kh8 13. b4 g5 14. b5 Ne7 15. Qa3 Be6 16. f3 exf3 17. Bxf3 {1-0 (53) Dos Santos,H (2160)-Capelo,M (1867) Sao Paulo 2015}) 13. Nb5 {[%emt 0:04:30]} a6 {[%emt 0:04:30]} 14. Nc3 {[%emt 0:04:30]} g5 {[%emt 0:01:30]} 15. b4 {[%emt 0:13:30]} Ne7 {[%emt 0:12:30]} 16. Qd1 {[%emt 0:08:30]} Ng6 {[%emt 0:20:30]} 17. Bh5 {[%emt 0:04:30]} Nxh5 {[%emt 0:01:30]} 18. Qxh5 {[%emt 0:00:00]} Nf8 {[%emt 0:00:30]} 19. a3 {[%emt 0:10:00]} Re6 {[%emt 0:01:30]} 20. Qe2 {[%emt 0:03:30]} Rh6 {[%emt 0:01:30]} 21. f3 {[%emt 0:06:24]} exf3 {[%emt 0:01:30]} 22. Qxf3 {[%emt 0:02:01]} c6 {[%emt 0:07:30]} 23. Ne2 $11 {[%emt 0:08:05]} ({White should try} 23. c5 $14) 23... Qe7 {[%emt 0:02:25]} 24. Rae1 {[%emt 0:02:38]} Ng6 {[%emt 0:01:50]} 25. Bg3 {[%emt 0:03:24]} Bd7 {[%emt 0:06:10]} 26. Nc1 {[%emt 0:01:45]} Nh4 {[%emt 0:03:44]} 27. Qf2 {[%emt 0:01:05]} Re8 {[%emt 0:01:24]} 28. Ncb3 {[%emt 0:00:43]} b6 {[%emt 0:01:52]} 29. c5 {[%emt 0:00:42]} bxc5 {[%emt 0:01:15]} 30. bxc5 {[%emt 0:00:07]} d5 {[%emt 0:00:00]} 31. Bd6 {[%emt 0:00:38]} Qf7 {[%emt 0:02:36]} 32. Nb1 {[%emt 0:00:34]} Qh5 {[%emt 0:00:24]} 33. Bg3 {[%emt 0:00:37]} Rf8 {[%emt 0:01:02]} 34. Bd6 {[%emt 0:00:30]} Ra8 {[%emt 0:01:26]} 35. Bg3 {[%emt 0:00:28]} Ng6 {[%emt 0:00:33]} 36. Qe2 {[%emt 0:00:38]} g4 {[%emt 0:00:30]} 37. hxg4 {[%emt 0:00:47]} fxg4 {[%emt 0:00:11]} 38. Qd3 {[%emt 0:00:17]} Qh1+ {[%emt 0:01:49]} 39. Kf2 {[%emt 0:00:32]} Rf8+ {[%emt 0:00:15]} 40. Ke2 {[%emt 0:00:00]} Qxg2+ {[%emt 0:00:00]} 0-1

[Event "World Junior U20 Girls 2018"]
[Site "Gebze"]
[Date "2018.09.14"]
[Round "10"]
[White "Anandpara Jayendra Saloni"]
[Black "Kyrkjebo, Marte B"]
[Result "1/2-1/2"]
[ECO "C54"]
[WhiteElo "1326"]
[BlackElo "1935"]
[Annotator "NA"]
[PlyCount "95"]
[EventDate "2018.09.05"]
[EventType "swiss"]
[EventCountry "TUR"]
[SourceTitle "playchess.com"]
[Source "ChessBase"]
[SourceQuality "1"]
[TimeControl "40/5400+30:1800+30"]

1. e4 {[%emt 0:00:30]} e5 {[%emt 0:00:30]} 2. Nf3 {[%emt 0:00:30]} Nc6 {[%emt 0:00:30]} 3. Bc4 {[%emt 0:00:30]} Bc5 {[%emt 0:00:30]} 4. c3 {[%emt 0:00:00]} Nf6 $11 {[%emt 0:00:00]} 5. d4 {[%emt 0:00:00] LiveBook: 1259 Games} exd4 {[%emt 0:00:00]} 6. cxd4 {[%emt 0:00:00]} Bb4+ {[%emt 0:00:00]} 7. Bd2 {[%emt 0:00:00]} Bxd2+ {[%emt 0:00:00]} 8. Nbxd2 {[%emt 0:00:00]} d5 {[%emt 0:00:30]} 9. exd5 {[%emt 0:00:00]} Nxd5 {[%emt 0:00:30]} 10. Qb3 {[%emt 0:00:00]} Nce7 {[%emt 0:10:30]} 11. O-O {[%emt 0:01:00]} O-O {[%emt 0:02:30]} 12. Bxd5 {[%emt 0:08:30]} Nxd5 {[%emt 0:03:30]} 13. Rfe1 {[%emt 0:00:30]} c6 {[%emt 0:05:30]} 14. Rac1 {[%emt 0:00:30]} Nb6 {[%emt 0:05:30]} 15. Qc2 {[%emt 0:20:30]} Be6 {[%emt 0:05:30]} 16. Nb3 {[%emt 0:00:30]} Bd5 {[%emt 0:04:30]} 17. Qd3 {[%emt 0:06:30]} Qf6 {[%emt 0:05:30]} 18. Nbd2 {[%emt 0:09:30]} Rfd8 {[%emt 0:04:30]} 19. b3 {[%emt 0:01:30]} Rac8 {[%emt 0:06:30]} 20. Qe3 {[%emt 0:06:30]} Bxf3 {[%emt 0:17:30]} 21. Nxf3 {[%emt 0:00:00]} Nd5 {[%emt 0:00:30]} 22. Qe5 {[%emt 0:09:00]} Qg6 {[%emt 0:03:30]} 23. Re4 {[%emt 0:11:30]} Nf6 {[%emt 0:04:11]} 24. Ree1 {[%emt 0:06:25]} h6 {[%emt 0:05:45]} 25. Nh4 {[%emt 0:02:06]} Qg4 {[%emt 0:05:39]} 26. Nf5 {[%emt 0:01:10]} Nd5 {[%emt 0:03:20]} 27. h3 {[%emt 0:05:17]} Qg5 {[%emt 0:01:06]} 28. h4 {[%emt 0:00:13]} Qg6 {[%emt 0:02:30]} 29. h5 {[%emt 0:09:56]} Qg5 {[%emt 0:00:30]} 30. Ne7+ {[%emt 0:00:58]} Qxe7 {[%emt 0:02:07]} 31. Qxe7 {[%emt 0:00:30]} Nxe7 {[%emt 0:00:30]} 32. Rxe7 {[%emt 0:00:00]} Rb8 {[%emt 0:00:14]} 33. Rd1 {[%emt 0:00:17]} Rd5 {[%emt 0:00:49]} 34. Re5 {[%emt 0:00:05]} Rbd8 {[%emt 0:00:19]} 35. Rxd5 {[%emt 0:00:56]} Rxd5 {[%emt 0:00:30]} 36. g4 {[%emt 0:00:00]} c5 {[%emt 0:00:10]} 37. Kf1 {[%emt 0:00:17]} cxd4 {[%emt 0:01:05]} 38. Ke2 {[%emt 0:00:22]} Kf8 {[%emt 0:01:20]} 39. Kd3 {[%emt 0:00:09]} Rg5 {[%emt 0:00:41]} 40. f3 {[%emt 0:02:55]} f5 {[%emt 0:00:00]} 41. Rg1 {[%emt 0:03:24]} fxg4 {[%emt 0:16:36]} 42. fxg4 {[%emt 0:00:30]} Rd5 {[%emt 0:04:52]} 43. Rc1 {[%emt 0:07:30]} Rd7 {[%emt 0:04:14]} 44. Rc4 {[%emt 0:00:30]} Kf7 {[%emt 0:04:58]} 45. Rxd4 {[%emt 0:00:00]} Rxd4+ {[%emt 0:01:26]} 46. Kxd4 {[%emt 0:00:00]} Kf6 {[%emt 0:00:50]} 47. Ke4 {[%emt 0:00:00]} Kg5 {[%emt 0:00:51]} 48. Kf3 {[%emt 0:00:00]} 1/2-1/2